Cogmind - Beta 10.2 @@@ ROGUE MODE // 2021.01.05 @ 16:59:32 Player: Demise Result: Self-destructed Performance ------------- Evolutions (2) 1000 Regions Visited (7) 1400 Robots Destroyed (135) 675 Value Destroyed (2219) 2219 Prototype IDs (29) 580 Alien Tech Used (0) 0 Bonus (395) 395 TOTAL SCORE: 6269 Bonus ------- High Alert Combat Kills 63 Follower Combat Kills 32 Aligned with FarCom 300 Cogmind --------- Core Integrity 291/550 Matter 300/300 Energy 265/265 System Corruption 0% Temperature Cool (0) Movement Treading (280) Ox6 Location -8/Materials Parts ------- > --- POWER (1) -------- Improved Ion Engine > --- PROPULSION (2) --- Light Treads > --- UTILITY (6) ------ High-capacity Storage Unit Humpback Signal Interpreter > --- WEAPON (2) ------- Improved EM Shotgun > --- INVENTORY (32) --- Improved Flight Unit Improved Flight Unit Large Storage Unit Large Storage Unit Large Storage Unit Large Storage Unit Large Storage Unit Humpback Humpback High-capacity Matter Pod (200) Improved Sensor Array Hacking Suite Hacking Suite Guided Plasma Cannon Light Assault Rifle Missile Launcher Mining Laser Axe Stasis Trap (100%) Stasis Trap (100%) Stasis Trap (100%) Peak State ------------ > --- POWER ------------ Reinforced Ion Engine > --- PROPULSION ------- Light Treads Light Treads > --- UTILITY ---------- High-capacity Storage Unit Humpback Signal Interpreter Light Armor Plating Hardened Medium Armor Plating > --- WEAPON ----------- Heavy Assault Rifle Heavy Assault Rifle > --- INVENTORY -------- Improved Ion Engine Light Treads Improved Flight Unit Improved Flight Unit Large Storage Unit Large Storage Unit Large Storage Unit Large Storage Unit Large Storage Unit Humpback Humpback High-capacity Matter Pod Improved Sensor Array Light Armor Plating Light Armor Plating Hacking Suite Hacking Suite Improved EM Shotgun Improved EM Shotgun Guided Plasma Cannon Light Assault Rifle Heavy Assault Rifle Missile Launcher Mining Laser Axe Stasis Trap Stasis Trap Stasis Trap [Rating: 21] Favorites ----------- Power Reinforced Ion Engine Engine Reinforced Ion Engine Power Core Light Nuclear Core Propulsion Light Treads Treads Light Treads Utility Signal Interpreter Device Improved Sensor Array Storage Large Storage Unit Processor Signal Interpreter Protection Light Armor Plating Weapon Heavy Assault Rifle Energy Gun Improved EM Shotgun Ballistic Gun Heavy Assault Rifle Special Weapon Mining Laser Build | -11 -10 -10 -9 -9 -9 -8 -8 ------- Run | Scr Mat Min Mat Min Exi Min Mat Slots Evolved 4 | . . . 2 . . . 2 Power . | . . . . . . . . Propulsion . | . . . . . . . . Utility 4 | . . . 2 . . . 2 Weapon . | . . . . . . . . Parts Attached 108 | 6 26 9 49 4 3 1 10 Power 10 | . 4 1 4 . . . 1 Engine 9 | . 4 1 3 . . . 1 Core 1 | . . . 1 . . . . Reactor . | . . . . . . . . Propulsion 18 | 2 2 . 12 . 1 . 1 Treads 18 | 2 2 . 12 . 1 . 1 Leg . | . . . . . . . . Wheel . | . . . . . . . . Hover . | . . . . . . . . Flight . | . . . . . . . . Utility 25 | 2 5 1 11 1 1 . 4 Device 2 | 1 . . 1 . . . . Storage 11 | 1 3 1 4 1 1 . . Processor 2 | . 2 . . . . . . Hackware . | . . . . . . . . Protection 10 | . . . 6 . . . 4 Artifact . | . . . . . . . . Weapon 55 | 2 15 7 22 3 1 1 4 Energy Gun 4 | . . . 2 . . . 2 Energy Cannon . | . . . . . . . . Ballistic Gun 38 | 2 9 6 16 1 1 1 2 Ballistic Cannon . | . . . . . . . . Launcher . | . . . . . . . . Special Weapon 13 | . 6 1 4 2 . . . Impact Weapon . | . . . . . . . . Slashing Weapon . | . . . . . . . . Piercing Weapon . | . . . . . . . . Special Melee Weapon . | . . . . . . . . Unidentified Prototypes 2 | . . . 2 . . . . Parts Lost 15 | . 1 1 2 . . . 11 Power 1 | . . . . . . . 1 Propulsion 3 | . . . 1 . . . 2 Utility 5 | . 1 . . . . . 4 Weapon 6 | . . 1 1 . . . 4 Highest Loss Streak 11 | . 1 1 1 . . . 11 Average Slot Usage (%) 96 | . 97 100 98 100 96 88 71 Engine 11 | . 12 14 10 11 11 11 8 Treads 24 | . 28 28 21 22 22 22 13 Device 1 | . 2 . 4 . . . . Storage 19 | . 15 14 18 31 29 22 18 Processor 11 | . 10 14 11 11 11 11 9 Protection 3 | . . . 9 1 . . 8 Ballistic Gun 22 | . 26 26 21 18 11 22 8 Special Weapon 1 | . 1 1 . 3 10 . . Naked Turns . | . . . . . . . . Heaviest Build 139 | 8 23 39 67 80 128 128 139 Greatest Support 40 | 40 40 40 40 40 40 40 40 Greatest Overweight (x) 6 | . . . 2 1 3 3 6 Average Overweight (x) . | . . . . 1 1 3 4 Largest Inventory Capacity 32 | 6 10 12 18 24 32 32 32 Average Capacity 17 | 4 9 11 16 22 25 32 32 Most Carried 32 | 5 10 12 18 21 32 32 32 Average Carried 16 | 3 9 11 16 19 23 31 26 Final Capacity 32 | 6 10 12 18 24 32 32 32 Final Carried 32 | 4 10 12 18 20 29 32 23 Class Distribution -------------------- 50% | Scavenger-Mutant 28% | Hauler-Mutant 21% | Mutant Dominant Class ---------------- Scavenger-Mutant | -10/Materials Scavenger-Mutant | -10/Mines Scavenger-Mutant | -9/Materials Hauler-Mutant | -9/Mines Hauler-Mutant | -9/Exiles Hauler-Mutant | -8/Mines Hauler-Mutant | -8/Materials Resources | -11 -10 -10 -9 -9 -9 -8 -8 ----------- Run | Scr Mat Min Mat Min Exi Min Mat Matter Collected 2863 | 280 935 193 1108 118 60 38 131 Remotely 192 | 22 170 . . . . . . Salvage Created 4265 | 111 1733 262 1532 92 . 83 452 Parts 294 | 10 133 18 95 10 . 4 24 Haulers Intercepted 7 | . 2 . 5 . . . . Recyclers Shooed 4 | . 2 . 1 1 . . . Parts Field Recycled . | . . . . . . . . Retrieved Matter . | . . . . . . . . Parts Self-Destructed . | . . . . . . . . Prevented . | . . . . . . . . Kills | -11 -10 -10 -9 -9 -9 -8 -8 ------- Run | Scr Mat Min Mat Min Exi Min Mat Combat Hostiles Destroyed 68 | . 13 9 33 5 . . 8 Guns 68 | . 13 9 33 5 . . 8 Classes Destroyed 14 | 2 8 . 2 . . . 2 Worker 26 | . 22 . 1 2 . . 1 Builder 11 | . 11 . . . . . . Tunneler 6 | 2 2 1 . . . 1 . Hauler 7 | . 2 . 5 . . . . Recycler 7 | 1 5 . . . . 1 . Mechanic 1 | . 1 . . . . . . Operator 3 | . 3 . . . . . . Watcher 6 | . 3 . 3 . . . . Swarmer 30 | . 8 6 11 5 . . . Grunt 24 | . 5 3 11 . . . 5 Brawler 1 | . . . 1 . . . . Duelist 1 | . . . . . . . 1 Sentry 11 | . . . 10 . . . 1 Hunter 1 | . . . . . . . 1 Best Kill Streak 8 | 2 4 3 4 6 . 1 8 Combat Bots Only 8 | . 4 3 4 5 . . 8 Max Kills in Single Turn 2 | 1 1 2 2 1 . 1 1 Gunslinging 1 | . . 1 1 . . . . Exploded . | . . . . . . . . Melee . | . . . . . . . . Uniques/NPCs Destroyed . | . . . . . . . . Combat | -11 -10 -10 -9 -9 -9 -8 -8 -------- Run | Scr Mat Min Mat Min Exi Min Mat Damage Taken 4080 | . 363 410 1352 210 . . 1745 Core 596 | . 57 68 177 35 . . 259 Absorbed by Shields . | . . . . . . . . Core Remaining (%) 65 | 100 . 50 . . . 47 . Volleys Fired 464 | 5 222 42 122 29 . 3 41 Largest 2 | 2 2 2 2 2 . 2 2 Hottest 100 | 40 100 100 100 100 . 46 90 Shots Fired 840 | 10 416 70 235 42 . 6 61 Gun 777 | 10 390 57 227 26 . 6 61 Cannon . | . . . . . . . . Launcher . | . . . . . . . . Special 63 | . 26 13 8 16 . . . Kinetic 752 | 10 390 57 227 26 . 6 36 Thermal 63 | . 26 13 8 16 . . . Explosive . | . . . . . . . . Electromagnetic 25 | . . . . . . . 25 Robot Hit Streak 24 | 7 15 12 24 8 . 6 15 Robot Miss Streak 5 | 2 3 3 5 3 . . 3 Penetration Max . | . . . . . . . . Secondary Targets 14 | . 3 2 6 1 . . 2 Max Gunslinging Chain 1 | . 1 1 1 1 . . 1 Shots Hit Robots 529 | 7 254 43 154 17 . 5 49 Core Hits 224 | 5 110 17 58 7 . 3 24 Critical Hits 4 | . . . 3 . . . 1 Critical Kills 1 | . . . . . . . 1 Critical Parts Destroyed 3 | . . . 3 . . . . Melee Attacks . | . . . . . . . . Impact . | . . . . . . . . Slashing . | . . . . . . . . Piercing . | . . . . . . . . Sneak Attacks . | . . . . . . . . Combat Hostiles . | . . . . . . . . Follow-up Attacks . | . . . . . . . . Damage Inflicted 6154 | 94 2214 427 2240 289 . 93 797 Guns 6051 | 94 2214 424 2234 265 . 75 745 Cannons . | . . . . . . . . Explosions 52 | . . . . . . . 52 Melee . | . . . . . . . . Ramming 27 | . . 3 6 . . 18 . Kinetic 5697 | 94 2214 424 2234 265 . 75 391 Thermal 76 | . . . . 24 . . 52 Explosive . | . . . . . . . . Electromagnetic 354 | . . . . . . . 354 Impact . | . . . . . . . . Slashing . | . . . . . . . . Piercing . | . . . . . . . . Highest Corruption 1 | . 1 1 . . . . . Average Corruption 1 | . 1 1 . . . . . Corruption Purged . | . . . . . . . . Effects 16 | . 13 3 . . . . . Message Errors 6 | . 4 2 . . . . . Energy Discharges 4 | . 3 1 . . . . . Data Loss (minor) 2 | . 2 . . . . . . Targeting Errors 2 | . 2 . . . . . . Weapon Failures 2 | . 2 . . . . . . Overload Shots . | . . . . . . . . Overflow Damage . | . . . . . . . . Projectiles . | . . . . . . . . Explosions . | . . . . . . . . Melee . | . . . . . . . . Knockbacks 1 | . . . . . . 1 . Impact 1 | . . . . . . 1 . Kinetic . | . . . . . . . . Secondary . | . . . . . . . . Self-Inflicted Damage 51 | . . . . . . . 51 Shots 1 | . . . . . . . 1 Rammed 3 | . . 1 1 . . 1 . Targets Rammed 3 | . . 1 1 . . 1 . Kicked . | . . . . . . . . Crushed . | . . . . . . . . Highest Temperature 170 | . 166 100 144 96 . . 170 Average Temperature 38 | . 62 35 20 40 . . 38 Received Heat Transfer 1104 | . 60 147 411 . . . 486 Siege Activations . | . . . . . . . . Robots Corrupted . | . . . . . . . . Combat Hostiles . | . . . . . . . . Parts Fried 1 | . . . . . . . 1 Impact Corruptions . | . . . . . . . . Robots Melted . | . . . . . . . . Combat Hostiles . | . . . . . . . . Parts Melted . | . . . . . . . . Heat Transferred 100 | . . . . 50 . . 50 Parts Sabotaged . | . . . . . . . . Parts Stolen . | . . . . . . . . Parts Stripped . | . . . . . . . . Power Chain Reactions 1 | . . . . . . . 1 Missiles Intercepted . | . . . . . . . . Alert | -11 -10 -10 -9 -9 -9 -8 -8 ------- Run | Scr Mat Min Mat Min Exi Min Mat Peak Influence 652 | 15 184 112 652 371 . 10 145 Initial 246 | . 9 37 27 246 . . . Average 131 | 5 69 74 249 214 . 3 61 Maximum Alert Level 2 | . . . 2 1 . . . Low Security (%) 82 | 100 100 100 56 58 . 100 100 Level 1 10 | . . . 21 41 . . . Level 2 6 | . . . 21 . . . . Level 3 . | . . . . . . . . Level 4 . | . . . . . . . . Level 5 . | . . . . . . . . High Security . | . . . . . . . . Max Security . | . . . . . . . . Squads Dispatched 11 | . 4 . 6 . . . 1 Investigation 6 | . 2 . 4 . . . . Extermination . | . . . . . . . . Reinforcement 5 | . 2 . 2 . . . 1 Assault . | . . . . . . . . Garrison . | . . . . . . . . Intercept . | . . . . . . . . Construction Impeded . | . . . . . . . . Haulers Reinforced . | . . . . . . . . Stealth | -11 -10 -10 -9 -9 -9 -8 -8 --------- Run | Scr Mat Min Mat Min Exi Min Mat Distress Signals 1 | . . 1 . . . . . Communications Jammed . | . . . . . . . . Distress Signals . | . . . . . . . . Times Spotted 109 | . 33 10 50 6 . . 10 Peak Tracking Total 5 | . 4 3 4 5 . . 5 Tactical Retreats 4 | . . 1 3 . . . . Traps | -11 -10 -10 -9 -9 -9 -8 -8 ------- Run | Scr Mat Min Mat Min Exi Min Mat Traps Triggered 3 | . 1 . 2 . . . . Indirectly . | . . . . . . . . Trap Hack Attempts . | . . . . . . . . Triggered . | . . . . . . . . Disarmed . | . . . . . . . . Reprogrammed . | . . . . . . . . Reused . | . . . . . . . . Traps Extracted . | . . . . . . . . Installed . | . . . . . . . . Triggered . | . . . . . . . . Machines | -11 -10 -10 -9 -9 -9 -8 -8 ---------- Run | Scr Mat Min Mat Min Exi Min Mat Machines Disabled 4 | . 2 . 1 . . . 1 Max in Single Turn 1 | . 1 . 1 . . . 1 Garrison Access 1 | . . . . . . . 1 Machines Sabotaged . | . . . . . . . . Garrisons Compromised . | . . . . . . . . Overloaded Fab Kills . | . . . . . . . . Fab Network Shutdowns . | . . . . . . . . Hacking | -11 -10 -10 -9 -9 -9 -8 -8 --------- Run | Scr Mat Min Mat Min Exi Min Mat Machines Accessed 22 | . 8 . 11 . 2 . 1 Terminals 14 | . 6 . 8 . . . . Fabricators . | . . . . . . . . Repair Stations 3 | . 1 . 2 . . . . Recycling Units 1 | . 1 . . . . . . Scanalyzers 1 | . . . 1 . . . . Garrison Access 1 | . . . . . . . 1 Total Hacks 72 | . 23 . 45 . 2 . 2 Successful 48 | . 15 . 30 . 2 . 1 Failed 24 | . 8 . 15 . . . 1 Catastrophic 2 | . 1 . 1 . . . . Database Lockouts . | . . . . . . . . Manual 37 | . 16 . 20 . 1 . . Terminals 40 | . 15 . 25 . . . . Fabricators . | . . . . . . . . Repair Stations 20 | . 6 . 14 . . . . Recycling Units 2 | . 2 . . . . . . Scanalyzers 6 | . . . 6 . . . . Garrison Access 2 | . . . . . . . 2 Terminal Hacks 13 | . 5 . 6 . 2 . . Record 1 | . . . . . 1 . . Robot Analysis 7 | . 3 . 4 . . . . Prototype ID Bank 1 | . 1 . . . . . . Terminal Index 2 | . 1 . 1 . . . . Hauler Manifests 1 | . . . 1 . . . . EX-Prototype ID Bank 1 | . . . . . 1 . . Fabricator Hacks . | . . . . . . . . Repair Station Hacks 19 | . 5 . 14 . . . . Scan Component 10 | . 3 . 7 . . . . Repair 9 | . 2 . 7 . . . . Recycling Unit Hacks 1 | . 1 . . . . . . Retrieve Components 1 | . 1 . . . . . . Scanalyzer 6 | . . . 6 . . . . Insert Component 3 | . . . 3 . . . . Analyze 3 | . . . 3 . . . . Garrison Access Hacks 1 | . . . . . . . 1 Seal Access 1 | . . . . . . . 1 Unauthorized Hacks 8 | . 4 . 4 . . . . Terminals 7 | . 3 . 4 . . . . Botnet 6 | . 2 . 4 . . . . Operators 1 | . 1 . . . . . . Fabricators . | . . . . . . . . Repair Stations . | . . . . . . . . Recycling Units 1 | . 1 . . . . . . Tunnel 1 | . 1 . . . . . . Scanalyzers . | . . . . . . . . Garrison Access . | . . . . . . . . Data Cores Recovered . | . . . . . . . . Used . | . . . . . . . . Hacking Detections 19 | . 7 . 11 . . . 1 Full Trace Events 6 | . 1 . 5 . . . . Feedback Events . | . . . . . . . . Feedback Blocked . | . . . . . . . . Robot Schematics Acquired . | . . . . . . . . Robots Built . | . . . . . . . . Matter . | . . . . . . . . Time . | . . . . . . . . Total Robot Build Rating . | . . . . . . . . Part Schematics Acquired 3 | . . . 3 . . . . Parts Built . | . . . . . . . . Matter . | . . . . . . . . Time . | . . . . . . . . Total Part Build Rating . | . . . . . . . . Parts Repaired 9 | . 2 . 7 . . . . Time 258 | . 52 . 206 . . . . Parts Recycled . | . . . . . . . . Recycled Matter . | . . . . . . . . Retrieved Matter . | . . . . . . . . Retrieved Components 10 | . 10 . . . . . . Parts Scanalyzed 3 | . . . 3 . . . . Part Schematics Acquired 3 | . . . 3 . . . . Parts Damaged . | . . . . . . . . Bothacking | -11 -10 -10 -9 -9 -9 -8 -8 ------------ Run | Scr Mat Min Mat Min Exi Min Mat Used RIF Installer . | . . . . . . . . Robots Hacked . | . . . . . . . . Non-combat . | . . . . . . . . Combat . | . . . . . . . . Robot Hacks Applied . | . . . . . . . . Relay Couplers Released . | . . . . . . . . Robots Rewired . | . . . . . . . . Allies Hacked . | . . . . . . . . Hacks Repelled . | . . . . . . . . Allies | -11 -10 -10 -9 -9 -9 -8 -8 -------- Run | Scr Mat Min Mat Min Exi Min Mat Total Allies 3 | . . 3 . . . . . Largest Group 3 | . . 3 3 . . . . Highest-Rated Group 40 | . . 40 40 . . . . Highest-Rated Ally 16 | . . 16 16 . . . . Total Orders 2 | . . . 2 . . . . STAY 1 | . . . 1 . . . . FOLLOW 1 | . . . 1 . . . . Ally Attacks 24 | . . . 24 . . . . Total Damage 231 | . . . 231 . . . . Kills 3 | . . . 3 . . . . Allies Corrupted . | . . . . . . . . Allies Melted . | . . . . . . . . Intel | -11 -10 -10 -9 -9 -9 -8 -8 ------- Run | Scr Mat Min Mat Min Exi Min Mat Robot Analysis Total 7 | . 3 . 4 . . . . Derelict Logs Recovered 2 | . . 1 . 1 . . . Drone Launches . | . . . . . . . . Drone Recoveries . | . . . . . . . . Exploration | -11 -10 -10 -9 -9 -9 -8 -8 ------------- Run | Scr Mat Min Mat Min Exi Min Mat Turns Passed 9268 | 63 2817 1064 2520 968 661 883 292 Spaces Moved 4066 | 37 1193 566 1009 476 335 392 58 Core 21 | 21 . . . . . . . Treads 4045 | 16 1193 566 1009 476 335 392 58 Legs . | . . . . . . . . Wheels . | . . . . . . . . Hover . | . . . . . . . . Flight . | . . . . . . . . Fastest Speed 50 | 50 160 160 160 180 180 220 220 Average Speed 176 | 97 160 160 179 180 188 220 252 Slowest Speed 280 | 160 160 160 200 180 220 220 280 Overloaded Moves . | . . . . . . . . Propulsion Burnouts . | . . . . . . . . Robots Hopped . | . . . . . . . . Cave-ins Triggered . | . . . . . . . . Exploration Rate (%) 70 | 3 98 97 97 93 69 95 8 Regions Visited 7 Branch Regions 4 Pre-discovered Areas 3 | . 1 1 . . 1 . . Known Exits Taken 6 | . 1 1 1 1 1 1 . Unknown Exits Taken 1 | 1 . . . . . . . Scrap Searched 3 | . . 1 . 1 . 1 . Spaces Dug 25 | . 6 6 5 8 . . . Terrain Destroyed 45 | . 7 12 8 14 . . 4 Melee . | . . . . . . . . Projectile 41 | . 7 12 8 14 . . . AOE 4 | . . . . . . . 4 Terrain Rammed . | . . . . . . . . Walls Destroyed . | . . . . . . . . Machines Disabled . | . . . . . . . . Actions | -11 -10 -10 -9 -9 -9 -8 -8 --------- Run | Scr Mat Min Mat Min Exi Min Mat Total 5301 | 53 1699 637 1484 512 366 406 144 Wait 522 | . 226 10 243 . . 8 35 Move 4059 | 36 1192 565 1008 475 334 391 58 Hop . | . . . . . . . . Pick Up 83 | 6 19 4 26 3 23 2 . Fast Attach 23 | 4 3 . 15 . 1 . . Attach 16 | 2 2 1 2 . . . 9 Detach . | . . . . . . . . Swap 69 | . 21 8 32 4 2 1 1 Drop 62 | . 14 6 35 1 6 . . Fire 464 | 5 222 42 122 29 . 3 41 Melee . | . . . . . . . . Ram . | . . . . . . . . Kick . | . . . . . . . . Crush 3 | . . 1 1 . . 1 . Escape Stasis . | . . . . . . . . Rewire . | . . . . . . . . Trap . | . . . . . . . . Miscellaneous . | . . . . . . . . Route ------- -11/Scrapyard -10/Materials (discovered 5 exits: *Mat x3 / *Min x2) -10/Mines (discovered 2 exits: *Mat x2) -9/Materials (discovered 7 exits: *Mat x3 / *Min x2 / *Sto x2) -9/Mines (discovered 3 exits: *Mat x2 / *Exi) -9/Exiles -8/Mines (discovered 2 exits: *Mat x2) -8/Materials History --------- Turn | Location | Event 9 | -11/Scrapyard | Discovered new exit (range 15) 64 | -11/Scrapyard | Entered Materials 322 | -10/Materials | Discovered new exit (range 9) 334 | -10/Materials | Build established: Mutant 626 | -10/Materials | Discovered new exit (range 13) 801 | -10/Materials | Identified exit to Mines 922 | -10/Materials | Identified exit to Materials 1191 | -10/Materials | Discovered exit to Materials (range 14) 1261 | -10/Materials | Discovered exit to Mines (range 5) 1501 | -10/Materials | Discovered exit to Materials (range 16) 1544 | -10/Materials | Repaired Assault Rifle 1578 | -10/Materials | Repaired Lrg. Storage Unit 1676 | -10/Materials | Build established: Scavenger-Mutant 2881 | -10/Materials | Entered Mines 2882 | -10/Mines | Learned location of Storage (-9) 3048 | -10/Mines | Learned Materials terminal intel 3222 | -10/Mines | Discovered exit to Materials (range 7) 3683 | -10/Mines | Build established: Mutant 3795 | -10/Mines | Discovered exit to Materials (range 12) 3907 | -10/Mines | Assisted by bots powering up and referring to "LRC-V3" 3945 | -10/Mines | Entered Materials 3945 | -9/Materials | Accompanied by 3 allies 3945 | -9/Materials | Evolved 2 slots: Utility x2 3946 | -9/Materials | Loaded intel: 11 terminal locations 4054 | -9/Materials | Build established: Scavenger-Mutant 4103 | -9/Materials | Discovered new exit (range 6) 4190 | -9/Materials | Identified exit to Mines 4269 | -9/Materials | Repaired Med. Armor Plating 4297 | -9/Materials | Repaired Hcp. Storage Unit 4774 | -9/Materials | Discovered new exit (range 15) 4940 | -9/Materials | Discovered new exit (range 6) 4986 | -9/Materials | Identified exit to Storage 5108 | -9/Materials | Discovered exit to Mines (range 9) 5516 | -9/Materials | Discovered exit to Storage (range 14) 5612 | -9/Materials | Discovered new exit (range 15) 5677 | -9/Materials | Identified exit to Materials 5880 | -9/Materials | Repaired Rnf. Ion Engine 5913 | -9/Materials | Repaired Hvy. Assault Rifle 5947 | -9/Materials | Repaired Hvy. Assault Rifle 5974 | -9/Materials | Repaired Lgt. Treads 6003 | -9/Materials | Repaired Lgt. Armor Plating 6211 | -9/Materials | Discovered exit to Materials (range 11) 6465 | -9/Materials | Entered Mines 6567 | -9/Mines | Core integrity fell below 50% 6608 | -9/Mines | Discovered exit to Materials (range 15) 6627 | -9/Mines | Found a hidden stash of uninstalled traps 6752 | -9/Mines | Received a Rocket Launcher from a helpful Derelict 6929 | -9/Mines | Learned Materials trap positions 6935 | -9/Mines | Build established: Hauler-Mutant 6949 | -9/Mines | Discovered exit to Materials (range 8) 7426 | -9/Mines | Deemed a non-threat by the Exiles lab entrance 7426 | -9/Mines | Discovered new exit (range 5) 7431 | -9/Mines | Identified exit to Exiles 7433 | -9/Mines | Entered Exiles 7493 | -9/Exiles | Met 8R-AWN 7518 | -9/Exiles | Met EX-HEX 7621 | -9/Exiles | Met EX-DEC 7653 | -9/Exiles | Learned location of Zion (-6) 7686 | -9/Exiles | Met EX-BIN 7711 | -9/Exiles | Aligned with FarCom system 7713 | -9/Exiles | Given EX-Vault access code 7756 | -9/Exiles | Opened EX-Vault 7767 | -9/Exiles | Found Gui. Plasma Cannon 7804 | -9/Exiles | Warned to stay clear of 0b10 Research branches 8074 | -9/Exiles | Discovered new exit (range 10) 8091 | -9/Exiles | Identified exit to Mines 8094 | -9/Exiles | Left Exiles lab with Gui. Plasma Cannon 8094 | -9/Exiles | Entered Mines 8111 | -8/Mines | Discovered exit to Materials (range 5) 8164 | -8/Mines | Discovered exit to Materials (range 3) 8977 | -8/Mines | Entered Materials 8977 | -8/Materials | Evolved 2 slots: Utility x2 8978 | -8/Materials | Loaded intel: 16 trap records 9197 | -8/Materials | Lost 11 parts (1p2n4u4w) 9202 | -8/Materials | Destroyed 8 combat bots 9269 | -8/Materials | Self-destructed Last Messages --------------- 09184_ R-06 Scavenger collects Imp. Heat Sink. 09186_ U-05 Engineer builds a Door. 09187_ R-06 Scavenger collects Melee Analysis Suite. 09195_ U-05 Engineer builds a Wall. 09199_ U-05 Engineer lays Concrete. 09213_ K-01 Serf collects debris. 09214_ U-05 Engineer lays Concrete. 09217_ K-01 Serf collects debris. 09217_ U-05 Engineer lays Concrete. 09223_ U-05 Engineer builds a Wall. 09227_ K-01 Serf destroyed. 09227_ U-05 Engineer builds a Wall. 09243_ K-01 Serf collects debris. 09245_ K-01 Serf cleans the Terminal. 09247_ K-01 Serf collects debris. 09252_ K-01 Serf cleans the Terminal. 09256_ K-01 Serf collects debris. 09261_ K-01 Serf cleans the Matter Pump. 09261_ K-01 Serf collects debris. 09269_ Connecting with Terminal... Map ----- +----------------------------------------------------+ | ????????????????????????????????????? | | ????????????????????????????????????? | | ????????????????????????????????????? | | ????????????????????????????????????? | | ?????????????????????????#####??????? | | ???????????????########### #??????? | | ???????????????# # #??????? | | ???????????????# # #??????? | | ??????????# ???# + ######## | | ??????????# ??# # # # | | ??????????# ############ # """ # | | ??????????# # """ # | | ??????????# * %!#* """ # | | ??????????# !%= ""=[=#== # | | ??????????# = G"**#%!% # | | ??????????# "" +== = # | | ??????????# ####### %# # | | ?????????????????#T %#""" # | | ?????????????????## #"S # | | ??????????????????#^ #""" # | | ??????????????????# ^ k # "" # | | ??????????????????#^^^""" # # | | ??????????????????#% """ ######## | | ??????????????????# """ #??????? | | ??????????????????+ #??????? | | ??????????????????# ! @ #??????? | | ??????????????????# ##"T"###??????? | | ??????????????????# ?#####????????? | | ??????????????????# ??????????????? | | ??????????????????# ???????????????? | | ??????????????????# ???????????????? | | ?^????g???????????# ???????????????? | | ??^?^??????????????? ???????????????? | | ????????????????????????????????????? | | ^^?^????????????????????????????????? | | ????????????????????????????????????? | | ????????????????????????????????????? | | ????????????????????????????????????? | | ????????????????????????????????????? | | ????????????????????????????????????? | | ????????????????????????????????????? | | ????????????????????????????????????? | | ????????????????????Y???????????????? | | ????????????????????????????????????? | | ????????????????????????????????????? | | ????????????????????????????????????? | | ????????????????????????????????????? | | ????????????????????????????????????? | | ????????????????????????????????????? | | ????????????????????????????????????? | +----------------------------------------------------+ Best States ------------- Heat Dissipation 31 Energy Generation 14 Energy Capacity 265 Matter Stores 350 Matter Capacity 350 Sight Range 16 Robot Scan Range 13 Terrain Scan Density 10 Armor Coverage 375 Evasion (%) 50 Recoil Reduction 2 Item Schematics ----------------- Imp. EM Shotgun | -9/Materials | Scanalyzed Imp. Flight Unit | -9/Materials | Scanalyzed Hacking Suite | -9/Materials | Scanalyzed Robot Schematics ------------------ None Fabricated ------------ Nothing Alien Tech Used ----------------- None Achievements -------------- None Challenges ------------ None Game ------ Seed FlakWaveMinigun Manual? 0 Play Time 00:48:40 Cumulative 177.0 hours Start 2021.01.05 @ 16:12:14 End 2021.01.05 @ 16:59:32 Sessions 1 Manual Loads 0 Difficulty Rogue Special Mode None Game No. 163 Rogue 163 Adventurer 0 Explorer 0 Win Type - Total 0 Types 0/0/0/0/0/0/0/0/0 Lore% 58 Gallery% 68 Achievement% 54 Wizard Run 0 Options --------- ASCII 0 Keyboard 1 Movement Numpad Keybinds 0 Fullscreen 1 Font 12/Terminus Map View 83x54 Tactical HUD 1 Map Filters NONE Filters NONE Steam 1 RUN: e44269bd-55ab-4b4b-a378-05e65f171559